bitfinex/quotes_ETHUSD_20241124
["timestamp","ask_amount","ask_price","bid_price","bid_amount"]
[1732480775354,1.49298854,3334.8,3334.6,0.05036821]
[1732480775540,1.03466231,3334.8,3334.6,0.05036821]
[1732480779661,2.99843,3335.1,3334.6,0.05036821]
[1732480779954,1.03466231,3334.9,3334.6,0.05036821]
[1732480781182,2.99868,3334.8,3334.6,0.05036821]
[1732480781484,2.9987,3334.8,3334.6,0.05036821]
[1732480781695,2.99877,3334.7,3334.6,0.05036821]
[1732480781990,2.99891,3334.6,3334.3,0.08573009]
[1732480782162,1.03466231,3334.5,3334.3,0.08573009]
[1732480794454,1.03466231,3334.5,3334.4,0.0503682]
[1732480798965,2.99877,3334.7,3334.4,0.0503682]
[1732480801439,1.03466231,3334.8,3334.4,0.0503682]
[1732480801641,0.28059909,3334.7,3334.4,0.0503682]
[1732480801872,1.03466231,3334.8,3334.4,2.7494982]
[1732480802672,1.03466231,3334.8,3334.4,0.0503682]
[1732480802964,0.28060095,3334.7,3334.4,0.0503682]
[1732480803131,1.03466231,3334.8,3334.4,0.0503682]
[1732480803464,0.28060058,3334.7,3334.4,2.7494982]
[1732480803679,1.03466231,3334.8,3334.4,0.0503682]
[1732480803822,0.28060319,3334.7,3334.4,0.0503682]
[1732480804026,1.03466231,3334.8,3334.4,2.7494682]
[1732480804252,0.28060639,3334.7,3334.4,2.7494682]
[1732480804456,1.03466231,3334.8,3334.4,2.7494682]
[1732480805681,2.99825,3335.3,3334.6,0.08573009]
[1732480805886,0.28058965,3335.2,3335.0,2.69861]
[1732480806085,1.03466231,3335.5,3335.1,0.90653009]
[1732480806391,3.27865939,3335.4,3335.2,0.05019838]
[1732480806584,2.99819,3335.4,3335.2,0.05019838]
[1732480807010,2.99823,3335.3,3335.2,0.05019838]
[1732480807178,3.27869361,3335.3,3335.2,0.05019838]
[1732480807378,4.07829361,3335.3,3335.2,0.05019838]
[1732480807597,2.99841,3335.1,3334.8,0.08573009]
[1732480807778,1.03466231,3334.9,3334.8,0.08573009]
[1732480808115,4.03325231,3334.9,3334.8,0.08573009]
[1732480808483,1.03466231,3334.9,3334.8,0.08573009]
[1732480808790,4.03325231,3334.9,3334.8,0.08573009]
[1732480809180,4.03325231,3334.9,3334.6,0.08573009]
[1732480809402,2.99892,3334.6,3334.4,0.08573009]
[1732480809608,4.03361231,3334.5,3334.4,0.08573009]
[1732480809808,4.51693354,3334.5,3334.1,0.08573009]
[1732480809978,4.03388231,3334.2,3334.1,0.08573009]
[1732480810316,1.03466231,3334.2,3333.4,0.08573009]
[1732480810520,1.03466231,3334.2,3333.3,2.0]
[1732480810521,2.99994,3333.4,3333.3,2.0]
[1732480811102,3.2803995,3333.4,3333.3,2.0]
[1732480811307,2.99994,3333.4,3333.3,2.0]
[1732480811510,3.78182523,3333.4,3333.3,2.0]
[1732480812383,2.99994,3333.4,3333.3,2.0]
[1732480813278,1.03466231,3333.5,3333.3,2.0]
[1732480813478,2.99955,3333.9,3333.3,2.7961]
[1732480813784,4.03399231,3334.1,3333.6,0.7961]
[1732480814319,2.99941,3334.0,3333.6,0.7961]
[1732480814613,2.99951,3333.9,3333.6,0.7961]
[1732480814825,4.03421231,3333.9,3333.6,0.7961]
[1732480815481,1.03466231,3333.9,3333.6,0.7961]
[1732480815709,1.03466231,3334.1,3333.6,0.7961]
[1732480816098,4.03399231,3334.1,3333.6,0.7961]
[1732480816424,2.99933,3334.1,3333.6,0.7961]
[1732480817215,2.99947,3334.0,3333.6,0.7961]
[1732480818232,3.0,3334.3,3333.6,0.7961]
[1732480818523,3.0,3334.3,3333.7,0.08573009]
[1732480818524,2.99914,3334.3,3333.7,0.08573009]
[1732480818682,2.99924,3334.2,3333.7,0.08573009]
[1732480819130,2.99936,3334.1,3333.7,0.08573009]
[1732480820746,2.9994,3334.0,3333.7,0.08573009]
[1732480821854,5.1865641,3334.4,3333.7,0.08573009]
[1732480821855,5.1858941,3334.1,3333.7,0.08573009]
[1732480822018,2.99941,3334.0,3333.7,0.08573009]
[1732480822459,2.99953,3333.9,3333.7,0.08573009]
[1732480823526,2.99936,3334.1,3333.7,0.08573009]
[1732480824138,2.9994,3334.0,3333.7,0.08573009]
[1732480824452,2.99949,3333.9,3333.8,0.04467728]
[1732480824821,2.99949,3333.9,3333.7,0.08573009]
[1732480825027,2.99949,3333.9,3333.8,0.0431933]
[1732480825727,2.99949,3333.9,3333.7,0.08573009]
[1732480825945,2.1865641,3334.1,3333.7,0.08573009]
[1732480825946,2.1865641,3334.1,3333.8,0.04319812]
[1732480826146,6.09420655,3334.1,3333.7,0.08573009]
[1732480826661,6.09420655,3334.1,3333.8,0.04319812]
[1732480826966,6.09420655,3334.1,3333.7,0.08573009]
[1732480827260,2.9994,3334.0,3333.9,0.04319812]
[1732480827434,2.9994,3334.0,3333.7,0.08573009]
[1732480827960,3.09484655,3334.1,3333.8,0.04319812]
[1732480828120,2.99954,3333.9,3333.8,0.04319812]
[1732480828455,2.99954,3333.9,3333.7,0.08573009]
[1732480828658,2.99954,3333.9,3333.8,0.04319812]
[1732480829030,2.99954,3333.9,3333.7,0.08573009]
[1732480829247,2.99954,3333.9,3333.8,0.04319812]
[1732480829964,2.99954,3333.9,3333.7,0.08573009]
[1732480830452,2.99954,3333.9,3333.8,0.04319812]
[1732480830835,2.99954,3333.9,3333.7,0.08573009]
[1732480831025,2.99954,3333.9,3333.8,0.04322701]
[1732480831242,5.1859041,3334.1,3333.8,0.04322701]
[1732480831435,5.1859041,3334.1,3333.7,0.08573009]
[1732480831638,2.9994,3334.0,3333.9,0.04322701]
[1732480831844,2.9995,3333.9,3333.7,0.08573009]
[1732480832569,2.99958,3333.8,3333.7,0.08573009]
[1732480833046,2.99958,3333.8,3333.4,0.08573009]
[1732480833250,2.99976,3333.6,3333.4,0.08573009]
[1732480833758,2.99994,3333.4,3333.3,2.0]
[1732480837096,5.1865041,3333.4,3333.3,2.0]
[1732480838072,2.99994,3333.4,3333.3,2.0]
[1732480838298,4.0354423,3333.4,3333.3,2.0]
[1732480838609,4.0354423,3333.4,3333.3,2.06943207]
[1732480838846,4.59982217,3333.4,3333.3,2.06943207]
[1732480839521,9.21111855,3333.4,3333.3,2.06943207]
[1732480839822,9.21111855,3333.4,3333.3,2.0]
[1732480840688,8.42981855,3333.4,3333.3,2.0]
[1732480841832,9.21111855,3333.4,3333.3,2.0]
[1732480843528,8.93112217,3333.4,3333.3,2.0]
[1732480843731,9.21079372,3333.4,3333.3,2.0]
[1732480846836,3.27961155,3333.4,3333.3,2.0]
[1732480847019,4.0354423,3333.4,3333.3,2.0]
[1732480847191,4.0354423,3333.4,3333.3,2.06634964]
[1732480847391,4.0354423,3333.4,3333.3,2.0]
[1732480852133,4.0354423,3333.4,3333.3,2.832]
[1732480852322,4.0354423,3333.4,3333.3,2.89605608]
[1732480855219,4.0352623,3333.6,3333.3,2.89605608]
[1732480855445,2.99985,3333.5,3333.3,2.89605608]
[1732480856248,2.99994,3333.4,3333.3,2.89605608]
[1732480860259,2.99837,3335.2,3333.6,0.08573009]
[1732480860439,2.99919,3334.3,3333.8,0.832]
[1732480860806,4.0343823,3334.6,3334.1,0.08573009]
[1732480861010,1.0355023,3334.7,3334.2,3.23137]
[1732480861205,4.0342723,3334.7,3334.2,0.89353961]
[1732480861506,2.999,3334.5,3334.2,0.89353961]
[1732480861912,4.0342723,3334.7,3334.2,0.89353961]
[1732480862157,2.99896,3334.5,3334.2,0.89353961]
[1732480862613,4.0342723,3334.7,3334.2,0.89353961]
[1732480862809,2.99886,3334.6,3334.2,0.89353961]
[1732480863657,1.0355023,3334.3,3334.2,0.06153961]
[1732480864154,2.99888,3334.6,3334.2,0.06153961]
[1732480864445,1.0355023,3334.5,3334.2,0.06153961]
[1732480864650,4.0344523,3334.5,3334.2,0.06153961]
[1732480864826,2.99913,3334.3,3334.2,0.06153961]
[1732480865088,4.0346323,3334.3,3334.2,0.06153961]
[1732480866950,1.0355023,3334.3,3334.2,0.06153961]
[1732480867315,1.0355023,3334.3,3334.2,0.82603961]
[1732480867625,1.0355023,3334.3,3334.2,1.15717258]
[1732480868222,3.5485,3335.0,3334.5,0.08573009]
[1732480868466,2.9985,3335.0,3334.6,0.7645]
[1732480868758,2.18537891,3335.1,3334.6,0.7645]
[1732480868759,2.18537891,3335.1,3334.7,0.08573009]
[1732480868963,2.18537891,3335.1,3334.7,0.14463155]
[1732480869374,5.18366891,3335.3,3334.7,2.54360155]
[1732480869664,2.18537891,3335.2,3334.8,0.7645]
[1732480870014,2.18537891,3335.2,3334.8,3.16344]
[1732480870219,2.18537891,3335.2,3334.9,0.05890146]
[1732480870540,2.18537891,3335.2,3334.8,3.16344]
[1732480870856,2.18537891,3335.2,3334.9,0.05890146]
[1732480871354,2.18537891,3335.2,3335.0,0.05890146]
[1732480871655,2.18537891,3335.2,3334.9,0.08573009]
[1732480871961,2.18537891,3335.2,3335.1,0.05890146]
[1732480872119,2.18537891,3335.2,3334.9,0.08573009]
[1732480872634,2.18537891,3335.2,3335.0,0.05890146]
[1732480873231,2.99841,3335.1,3335.0,0.05890146]
[1732480873433,2.18537891,3335.2,3335.0,0.05890146]
[1732480873853,5.18375891,3335.2,3335.0,0.05890146]
[1732480874027,2.99841,3335.1,3335.0,0.05890146]
[1732480874229,5.18375891,3335.2,3335.0,0.05890146]
[1732480874457,2.99841,3335.1,3335.0,0.05890146]
[1732480874760,3.81662689,3335.1,3335.0,0.05890146]
[1732480874966,2.99874,3334.8,3334.6,0.91773009]
[1732480875177,2.18537891,3334.7,3334.4,0.08573009]
[1732480875463,2.99895,3334.5,3334.4,0.08573009]
[1732480876127,5.18414891,3334.7,3334.6,0.08573009]
[1732480877546,5.18414891,3334.7,3334.4,0.08573009]
[1732480877720,5.18414891,3334.7,3334.6,0.08573009]
[1732480878520,2.18537891,3334.7,3334.6,0.08573009]
[1732480878765,5.18414891,3334.7,3334.6,0.08573009]
[1732480879120,2.18537891,3334.7,3334.6,0.08573009]
[1732480879423,5.18414891,3334.7,3334.6,0.08573009]
[1732480879620,2.18537891,3334.7,3334.6,0.08573009]
[1732480879862,5.18414891,3334.7,3334.6,0.08573009]
[1732480881350,6.0024298,3334.7,3334.6,0.08573009]
[1732480881546,6.0024298,3334.7,3334.4,0.08573009]
[1732480881858,5.18414891,3334.7,3334.4,0.08573009]
[1732480882050,2.99886,3334.6,3334.4,0.08573009]
[1732480882925,2.99895,3334.5,3334.4,0.08573009]
[1732480883566,2.99913,3334.3,3334.2,0.08573009]
[1732480883726,5.18450891,3334.3,3334.2,0.08573009]
[1732480884367,5.18450891,3334.3,3334.2,0.1418071]
[1732480885780,6.7918548,3334.3,3334.0,0.08573009]
[1732480885980,2.99931,3334.1,3334.0,0.08573009]
[1732480886168,2.99931,3334.1,3334.0,0.14220658]
[1732480887477,2.99931,3334.1,3334.0,0.08573009]
[1732480887641,2.99931,3334.1,3334.0,0.14220658]
[1732480888271,5.18450891,3334.3,3334.0,0.14220658]
[1732480888856,5.18450891,3334.3,3334.1,0.775]
[1732480889257,2.99922,3334.2,3334.1,0.775]
[1732480889494,2.99931,3334.1,3334.0,0.08573009]
[1732480890164,5.18450891,3334.3,3334.0,0.08573009]
[1732480890947,2.18537891,3334.3,3334.0,0.08573009]
[1732480892398,2.18537891,3334.3,3334.2,0.08573009]
[1732480894860,2.18537891,3334.3,3334.2,0.90893009]
[1732480897702,2.18537891,3334.3,3334.2,0.08573009]
[1732480899599,2.18537891,3334.3,3334.2,0.14229802]
[1732480900375,1.03502515,3334.3,3334.2,0.14229802]
[1732480901499,2.99888,3334.6,3334.2,0.14229802]
[1732480901698,1.03502515,3334.3,3334.2,0.14229802]
[1732480901897,1.03502515,3334.3,3334.2,0.05656793]
[1732480902197,4.82645515,3334.3,3334.2,0.08573009]
[1732480902406,4.82645515,3334.3,3334.2,0.14221137]
[1732480903798,1.03502515,3334.3,3334.2,0.14221137]
[1732480903975,4.03415515,3334.3,3334.2,0.14221137]
[1732480904496,2.99886,3334.6,3334.2,0.96541137]
[1732480904699,1.03502515,3334.3,3334.2,0.96541137]
[1732480909201,2.99847,3335.1,3334.5,0.08573009]
[1732480909409,1.03502515,3334.7,3334.6,0.8074]
[1732480909583,1.03502515,3334.7,3334.6,3.26306236]
[1732480909791,1.03502515,3334.7,3334.6,3.83786361]
[1732480910172,1.03502515,3334.7,3334.6,1.43878361]
[1732480910684,1.03502515,3334.7,3334.6,0.86398236]
[1732480910884,1.03502515,3334.7,3334.6,0.05658236]
[1732480910885,4.03379515,3334.7,3334.6,0.05658236]
[1732480911186,2.99904,3334.4,3334.3,0.08573009]
[1732480911399,4.03406515,3334.4,3334.3,0.08573009]
[1732480911609,4.03406515,3334.4,3334.3,0.13805059]
[1732480911806,4.03406515,3334.4,3334.3,0.08573009]
[1732480912398,5.1855675,3334.4,3334.3,0.08573009]
[1732480912741,5.1856275,3334.4,3334.2,0.08573009]
[1732480912897,5.1856275,3334.4,3334.0,0.08573009]
[1732480913091,5.1855975,3334.4,3334.3,0.05234453]
[1732480913428,2.99931,3334.1,3334.0,0.08573009]
[1732480913724,2.1865275,3334.1,3334.0,0.08573009]
[1732480914334,5.1858375,3334.1,3334.0,0.08573009]
[1732480914542,5.1858375,3334.1,3334.0,0.13807462]
[1732480914898,2.1865275,3334.1,3334.0,0.13807462]
[1732480916398,5.1858375,3334.1,3334.0,0.13807462]
[1732480917665,2.1865275,3334.1,3334.0,0.13807462]
[1732480918992,2.1865275,3334.1,3334.0,2.87210308]
[1732480920510,2.1865275,3334.1,3334.0,3.67950308]
[1732480922668,2.1865275,3334.5,3334.4,0.08573009]
[1732480923013,2.1865275,3334.5,3334.4,0.95052558]
[1732480923344,2.1865275,3334.9,3334.6,2.48480009]
[1732480923542,2.1865275,3334.9,3334.8,0.89783009]
[1732480923706,2.1865275,3334.9,3334.8,1.2275141]
[1732480923909,2.1865275,3334.9,3334.8,0.95052558]
[1732480925023,2.1865275,3335.2,3334.8,3.34946558]
[1732480925232,2.1865275,3335.2,3335.0,0.08573009]
[1732480925736,2.1865275,3335.2,3335.1,0.05232534]
[1732480929288,2.1865275,3335.5,3335.4,0.08573009]
[1732480929889,2.1865275,3335.5,3335.4,0.13805543]
[1732480934352,2.1865275,3335.8,3335.7,0.08573009]
[1732480934694,3.75996,3336.3,3335.9,0.08573009]
[1732480934865,2.1865275,3336.0,3335.9,0.08573009]
[1732480936390,2.99739,3336.3,3336.1,0.08573009]
[1732480936599,5.1839475,3336.2,3336.1,0.08573009]
[1732480937370,2.1865275,3336.2,3336.1,0.08573009]
[1732480938154,5.1839475,3336.2,3336.1,0.08573009]
[1732480939361,2.1865275,3336.2,3336.1,0.08573009]
[1732480939870,5.1839475,3336.2,3336.1,0.08573009]
[1732480941174,5.1839475,3336.2,3336.1,0.13708951]
[1732480941376,6.07833525,3336.2,3336.1,0.13708951]
[1732480941993,6.07833525,3336.2,3336.1,0.08573009]
[1732480942166,6.07833525,3336.2,3336.1,0.13705108]
[1732480942364,6.07833525,3336.2,3336.1,0.08573009]
[1732480942607,6.07833525,3336.2,3336.1,0.13705108]
[1732480942771,6.07833525,3336.2,3336.1,0.08573009]
[1732480943101,6.07833525,3336.2,3336.1,0.13705108]
[1732480944299,5.1839475,3336.2,3336.1,0.13705108]
[1732480945507,5.1839475,3336.2,3336.1,0.08573009]
[1732480946306,3.8161,3336.0,3335.9,0.08573009]
[1732480946473,6.0026275,3336.0,3335.9,0.08573009]
[1732480946678,6.90263225,3336.0,3335.9,0.08573009]
[1732480947601,3.90503225,3336.0,3335.6,0.08573009]
[1732480947778,5.1843975,3335.7,3335.6,0.08573009]
[1732480949377,2.1865275,3335.7,3335.6,0.08573009]
[1732480950889,5.1843975,3335.7,3335.6,0.08573009]
[1732480954314,4.03207236,3335.7,3335.6,0.08573009]
[1732480954714,5.63707383,3335.7,3335.4,0.08573009]
[1732480954940,4.03225236,3335.5,3335.4,0.08573009]
[1732480956238,4.03225236,3335.5,3335.4,0.13544316]
[1732480957529,4.03225236,3335.5,3335.4,0.08573009]
[1732480959538,4.03225236,3335.5,3335.4,0.13544316]
[1732480961947,4.03225236,3335.5,3335.4,0.08573009]
[1732480963354,4.03225236,3335.5,3335.4,0.13544316]
[1732480964521,4.03225236,3335.5,3335.4,0.08573009]
[1732480964739,4.03225236,3335.5,3335.4,0.13544316]
[1732480965832,4.03225236,3335.5,3335.4,0.08573009]
[1732480966239,4.03225236,3335.5,3335.4,0.13544316]
[1732480966841,1.03420236,3335.5,3335.4,0.13544316]
[1732480967039,1.03420236,3336.0,3335.4,0.13544316]
[1732480967040,2.9976,3336.0,3335.8,0.08573009]
[1732480967467,1.03420236,3335.9,3335.8,0.08573009]
[1732480968356,1.03420236,3335.9,3335.8,0.13540954]
[1732480969743,4.03189236,3335.9,3335.8,0.13540954]
[1732480978197,4.03189236,3335.9,3335.8,0.08573009]
[1732480978548,4.03189236,3335.9,3335.8,0.13517896]
[1732480982000,4.03189236,3335.9,3335.8,0.08573009]
[1732480982295,4.91824183,3335.9,3335.8,0.08573009]
[1732480983200,4.91824183,3335.9,3335.0,2.39877]
[1732480983201,2.99787,3335.7,3335.6,0.08573009]
[1732480983497,2.99805,3335.5,3335.4,0.08573009]
[1732480983659,4.03225236,3335.5,3335.4,0.08573009]
[1732480989804,4.03225236,3335.5,3335.4,0.13468436]
[1732480989967,4.03225236,3335.5,3335.4,0.08573009]
[1732480990369,4.03225236,3335.5,3335.4,0.13468436]
[1732480992499,2.99805,3335.5,3335.4,0.13468436]
[1732480992699,4.03225236,3335.5,3335.4,0.13468436]
[1732480994279,4.7352646,3335.5,3335.4,0.08573009]
[1732480994903,6.57296696,3335.5,3335.4,0.08573009]
[1732480996817,5.5387646,3335.5,3335.4,0.08573009]
[1732480998180,6.57296696,3335.5,3335.4,0.08573009]
[1732480998501,5.5387646,3335.5,3335.4,0.08573009]
[1732480999215,6.57296696,3335.5,3335.4,0.08573009]
[1732481002614,5.5387646,3335.5,3335.4,0.08573009]
[1732481002807,4.03225236,3335.5,3335.4,0.08573009]
[1732481003507,5.06645472,3335.5,3335.4,0.08573009]
[1732481004398,5.85835472,3335.5,3335.4,0.08573009]
[1732481005633,2.99823,3335.4,3335.2,0.08573009]
[1732481005823,5.06663472,3335.3,3335.2,0.08573009]
[1732481010187,5.06663472,3335.3,3335.0,0.08573009]
[1732481010389,5.06681472,3335.1,3335.0,0.08573009]
[1732481010894,5.34720335,3335.1,3335.0,0.08573009]
[1732481011233,5.06681472,3335.1,3335.0,0.08573009]
[1732481011623,5.06681472,3335.1,3335.0,0.1351936]
[1732481011816,5.34720892,3335.1,3335.0,0.1351936]
[1732481012201,6.24033816,3335.1,3335.0,0.1351936]
[1732481012532,6.24028771,3335.1,3335.0,0.08573009]
[1732481012712,2.99859,3334.9,3334.8,0.08573009]
[1732481012892,4.03279236,3334.9,3334.8,0.08573009]
[1732481016373,1.03420236,3334.9,3334.8,0.08573009]
[1732481016531,1.03420236,3334.9,3334.8,0.91243009]
[1732481017252,2.99835,3335.2,3334.8,1.2435831]
[1732481017455,1.03420236,3334.9,3334.8,0.91243009]
[1732481017658,2.99808,3335.5,3335.0,0.08573009]
[1732481017853,2.06840472,3335.1,3335.0,0.08573009]
[1732481019370,2.06840472,3335.1,3335.0,0.13566457]
[1732481024309,2.99798,3335.6,3335.3,0.7947]
[1732481024482,1.03420236,3335.4,3335.3,0.7947]
[1732481024872,1.03420236,3335.4,3335.3,0.84463448]
[1732481025993,1.03420236,3335.4,3335.3,3.24321448]
[1732481026209,1.03420236,3335.4,3335.3,3.81597894]
[1732481028097,1.03420236,3335.4,3335.3,0.04993448]
[1732481032540,2.06840472,3335.4,3335.3,0.04993448]
[1732481033550,5.06654472,3335.4,3335.3,0.04993448]
[1732481037822,5.06654472,3335.4,3335.2,0.08573009]
[1732481038036,5.06654472,3335.4,3335.3,0.04936262]
[1732481040857,6.67599619,3335.4,3335.3,0.04936262]
[1732481041145,6.67599619,3335.4,3335.2,0.08573009]
[1732481041349,2.99823,3335.3,3335.2,0.08573009]
[1732481041555,5.06663472,3335.3,3335.2,0.08573009]
[1732481042075,2.06840472,3335.3,3335.2,0.08573009]
[1732481042442,5.06663472,3335.3,3335.2,0.08573009]
[1732481046046,2.06840472,3335.3,3335.2,0.08573009]
[1732481046465,5.06663472,3335.3,3335.2,0.08573009]
[1732481046966,5.06663472,3335.3,3335.2,0.13515518]
[1732481050379,2.06840472,3335.3,3335.2,0.13515518]
[1732481050881,1.03420236,3335.3,3335.2,0.13515518]
[1732481051051,3.0,3335.9,3335.4,0.08573009]
[1732481051254,1.03420236,3335.5,3335.4,0.08573009]
[1732481051686,1.03420236,3335.5,3335.4,0.13519842]
[1732481051849,1.03420236,3335.5,3335.4,0.94389842]
[1732481055173,1.03420236,3335.5,3335.4,3.91653426]
[1732481055350,1.03420236,3335.5,3335.4,3.34240842]
[1732481060696,1.03420236,3335.5,3335.4,0.13519842]
[1732481061197,1.03420236,3335.5,3335.4,2.53370842]
[1732481061795,1.85790236,3336.0,3335.4,0.13519842]
[1732481062003,0.8237,3336.0,3335.8,0.08573009]
[1732481062204,1.03420236,3335.9,3335.8,0.08573009]
[1732481063405,3.0,3336.4,3335.9,3.22694]
[1732481063572,2.06840472,3336.0,3335.9,3.22694]
[1732481064060,2.99718,3336.5,3336.2,0.08573009]
[1732481064279,2.06840472,3336.3,3336.2,0.08573009]
[1732481064476,1.03420236,3336.3,3336.2,0.08573009]
[1732481069099,2.06840472,3336.3,3336.2,0.08573009]
[1732481069684,5.06573472,3336.3,3336.2,0.08573009]
[1732481070994,0.8237,3336.7,3336.2,0.08573009]
[1732481071327,1.03420236,3336.3,3336.2,0.13448263]
[1732481071684,1.03420236,3336.3,3336.2,0.12205063]
[1732481072183,1.03420236,3336.3,3336.2,0.07329809]
[1732481072687,1.03420236,3336.3,3336.2,2.47122809]
[1732481073205,1.03420236,3336.3,3336.2,0.12205063]
[1732481075217,2.06840472,3336.3,3336.2,0.12205063]
[1732481077585,1.03420236,3336.3,3336.2,0.12205063]
[1732481078139,5.06573472,3336.3,3336.2,0.12205063]
[1732481078420,5.84366296,3336.3,3336.2,0.12205063]
[1732481078625,5.84366296,3336.3,3336.2,0.07329809]
[1732481078987,5.84366296,3336.3,3336.2,0.12167122]
[1732481080792,6.1235931,3336.3,3336.2,0.12167122]
[1732481080990,5.84366296,3336.3,3336.2,0.12167122]
[1732481082711,6.12368617,3336.3,3336.2,0.12167122]
[1732481083428,6.1237186,3336.3,3336.2,0.12167122]
[1732481083795,6.1237186,3336.3,3336.2,0.07329809]
[1732481083991,3.1263886,3336.3,3336.2,0.07329809]
[1732481084318,2.34846036,3336.3,3336.2,0.07329809]
[1732481084637,6.09639036,3336.3,3336.2,0.07329809]
[1732481085198,3.09906036,3336.3,3335.9,0.07329809]
[1732481085393,5.06600472,3336.0,3335.9,0.07329809]
[1732481086946,5.94741519,3336.0,3335.9,0.07329809]
[1732481087119,6.69801519,3336.0,3335.9,0.07329809]
[1732481087318,6.97815687,3336.0,3335.9,0.07329809]
[1732481087533,3.76025,3335.5,3335.4,0.07329809]
[1732481087707,4.79445236,3335.5,3335.2,0.07329809]
[1732481088042,4.03243236,3335.3,3335.2,0.07329809]
[1732481090147,5.06663472,3335.3,3335.2,0.07329809]
[1732481090347,5.06663472,3335.3,3335.0,0.07329809]
[1732481090620,5.06681472,3335.1,3335.0,0.07329809]
[1732481094468,5.06681472,3335.1,3335.0,0.12178168]
[1732481100973,5.06681472,3335.1,3335.0,0.04848359]
[1732481101175,5.87331919,3335.1,3335.0,0.04848359]
[1732481101389,2.99859,3334.9,3334.8,0.07329809]
[1732481101675,4.03279236,3334.9,3334.8,0.07329809]
[1732481104548,4.03279236,3334.9,3334.8,0.12225728]
[1732481106385,2.99827,3335.3,3335.1,0.07329809]
[1732481106588,4.03252236,3335.2,3335.1,0.07329809]
[1732481106788,4.03252236,3335.2,3335.1,0.12299228]
[1732481107083,5.06672472,3335.2,3335.1,0.12299228]
[1732481108563,5.87322419,3335.2,3335.1,0.12299228]
[1732481108754,6.62762419,3335.2,3335.1,0.12299228]
[1732481109490,2.9985,3335.0,3334.9,0.07329809]
[1732481109797,5.06690472,3335.0,3334.9,0.07329809]
[1732481110088,6.32934414,3335.0,3334.9,0.12282889]
[1732481110593,6.32934414,3335.0,3334.9,0.07329809]
[1732481113591,2.06840472,3335.0,3334.9,0.07329809]
[1732481113775,2.99823,3335.3,3335.1,0.07329809]
[1732481113980,4.03252236,3335.2,3335.1,0.07329809]
[1732481114176,5.06672472,3335.2,3335.1,0.07329809]
[1732481115967,2.06840472,3335.2,3335.1,0.07329809]
[1732481116173,2.99701,3336.7,3335.5,0.07329809]
[1732481116397,2.99701,3336.7,3335.4,0.8147]
[1732481116398,2.99771,3335.9,3335.8,0.07329809]
[1732481116991,2.99771,3335.9,3335.4,0.8147]
[1732481116992,2.9978,3335.8,3335.6,0.07329809]
[1732481117380,3.70077124,3335.8,3335.6,0.07329809]
[1732481118096,4.03207236,3335.7,3335.6,0.07329809]
[1732481118990,1.03420236,3335.7,3335.6,0.07329809]
[1732481124512,1.03420236,3335.7,3335.6,0.12237244]
[1732481140489,4.03207236,3335.7,3335.6,0.12237244]
[1732481140686,1.91731883,3335.7,3335.6,0.12237244]
[1732481140934,1.03420236,3335.7,3335.6,0.12237244]
[1732481142423,4.03207236,3335.7,3335.6,0.12237244]
[1732481144235,6.11376752,3335.7,3335.6,0.04907435]
[1732481144729,2.99823,3335.3,3335.2,0.07329809]
[1732481144888,5.06663472,3335.3,3335.2,0.07329809]
[1732481145094,5.06663472,3335.3,3335.2,0.12233401]
[1732481145329,5.06663472,3335.3,3335.2,0.07329809]
[1732481145533,2.9985,3335.0,3334.9,0.07329809]
[1732481145696,5.06690472,3335.0,3334.9,0.07329809]
[1732481146401,2.99868,3334.8,3334.7,0.07329809]
[1732481146588,4.79558236,3334.8,3334.7,0.07329809]
[1732481146788,2.99886,3334.6,3334.5,0.07329809]
[1732481147046,2.99886,3334.6,3334.5,0.12254542]
[1732481147347,5.96541007,3334.6,3334.5,0.04924733]
[1732481147536,6.72811007,3334.6,3334.5,0.04924733]
[1732481147711,2.99904,3334.4,3334.3,0.07329809]
[1732481147909,6.04015973,3334.4,3334.3,0.07329809]
[1732481148217,2.99949,3333.9,3333.8,0.07329809]
[1732481148432,2.06840472,3334.0,3333.8,0.07329809]
[1732481149731,2.99949,3333.9,3333.8,0.07329809]
[1732481151951,2.99967,3333.7,3333.6,0.07329809]
[1732481152258,3.75115,3333.5,3333.4,0.07329809]
[1732481152443,4.78535236,3333.5,3333.4,0.07329809]
[1732481152757,3.00039,3332.9,3332.8,0.07329809]
[1732481152929,4.03459236,3332.9,3332.8,0.07329809]
[1732481153106,1.03420236,3332.9,3332.8,0.07329809]
[1732481153610,4.03459236,3332.9,3332.8,0.07329809]
[1732481154445,1.03420236,3332.9,3332.8,0.07329809]
[1732481154664,1.03420236,3332.9,3332.8,0.12060199]
[1732481155765,3.00005,3333.3,3333.0,0.84449809]
[1732481155955,1.03420236,3333.1,3333.0,0.84449809]
[1732481156465,1.03420236,3333.1,3333.0,0.89180199]
[1732481161327,1.03420236,3333.1,3333.0,0.12060199]
[1732481162271,1.03420236,3333.1,3333.0,0.89180199]
[1732481162780,1.03420236,3333.1,3333.0,3.29204199]
[1732481163849,1.03420236,3333.1,3333.0,0.89180199]
[1732481166172,1.03420236,3333.1,3333.0,3.29204199]
[1732481167152,1.03420236,3333.3,3333.2,0.89499809]
[1732481167353,1.03420236,3333.3,3333.2,3.29508809]
[1732481167586,1.03420236,3333.3,3333.2,3.34263699]
[1732481167754,2.99934,3334.1,3333.2,3.34263699]
[1732481167755,2.99934,3334.1,3333.8,0.07329809]
[1732481167956,1.03420236,3333.9,3333.8,0.89499809]
[1732481168184,3.82991,3334.6,3334.0,0.07329809]
[1732481168388,2.99885,3334.7,3334.2,0.07329809]
[1732481168559,3.298735,3334.7,3334.2,0.07329809]
[1732481168765,0.299885,3334.7,3334.3,0.0475489]
[1732481168991,2.99843,3335.1,3334.6,0.07329809]
[1732481169204,2.99843,3335.1,3334.8,0.07329809]
[1732481169360,2.06840472,3335.0,3334.8,0.07329809]
[1732481169558,2.95801219,3335.0,3334.8,0.07329809]
[1732481169798,5.95651219,3335.0,3334.9,0.0475489]
[1732481170097,3.78901219,3335.0,3334.6,0.07329809]
[1732481170400,2.99895,3334.5,3334.4,0.07329809]
[1732481170702,0.7744,3334.4,3334.2,0.07329809]
[1732481170990,5.18575782,3334.3,3334.2,0.07329809]
[1732481174393,2.18662782,3334.3,3334.2,0.07329809]
[1732481175993,5.18575782,3334.3,3334.2,0.07329809]
[1732481177507,2.18662782,3334.3,3334.2,0.07329809]
[1732481177674,5.18575782,3334.3,3334.2,0.07329809]
[1732481178074,6.0042296,3334.3,3334.2,0.07329809]
[1732481178285,6.0042296,3334.3,3334.2,0.12047707]
[1732481179496,6.0042296,3334.3,3334.2,0.07329809]
[1732481179872,6.0042296,3334.3,3334.0,0.07329809]
[1732481179873,2.99931,3334.1,3334.0,0.07329809]
[1732481180708,2.99947,3334.0,3333.9,0.07329809]
[1732481180985,2.99967,3333.7,3333.4,0.07329809]
[1732481181195,5.18647782,3333.5,3333.4,0.07329809]
[1732481181977,3.00003,3333.3,3333.2,0.07329809]